[Event "African Individual Chess-ch Open 2024"]
[Site "Accra"]
[Date "2024.03.18"]
[Round "7.5"]
[White "Rakotomaharo, Fy Antenaina"]
[Black "ONOKPITE, Kennedy"]
[Result "1-0"]
[ECO "C90"]
[WhiteElo "2454"]
[BlackElo "2101"]
[Annotator "RC"]
[PlyCount "115"]
[EventDate "2024.03.13"]
[EventCountry "GHA"]
[SourceTitle "playchess.com"]
[Source "ChessBase"]
[SourceQuality "1"]
[TimeControl "5400+30"]

1. e4 {[%emt 0:00:02]} e5 {[%emt 0:00:13]} 2. Nf3 {[%emt 0:00:04]} Nc6 {[%emt 0:00:12]} 3. Bb5 {[%emt 0:00:04]} a6 {[%emt 0:00:16]} 4. Ba4 {[%emt 0:00:04]} Nf6 {[%emt 0:00:13]} 5. d3 {[%emt 0:00:13]} b5 {[%emt 0:00:40]} 6. Bb3 {[%emt 0:01:29]} Be7 {[%emt 0:00:13]} 7. O-O {[%emt 0:00:39]} O-O {[%emt 0:00:21]} 8. Re1 {[%emt 0:00:45]} d6 {[%emt 0:00:13]} 9. c3 {[%emt 0:00:07]} Nb8 {[%emt 0:05:54]} 10. Nbd2 {[%emt 0:03:03]} Nbd7 {[%emt 0:00:20]} 11. Nf1 {[%emt 0:00:18]} Nc5 {[%emt 0:04:37]} 12. Bc2 {[%emt 0:00:15]} Ne6 {[%emt 0:00:16]} 13. d4 {[%emt 0:02:55]} Nd7 {[%emt 0:01:14]} 14. Ng3 {[%emt 0:00:14]} Bb7 {[%emt 0:00:37]} 15. Nf5 {[%emt 0:02:55]} Bf6 {[%emt 0:00:19]} 16. h4 {[%emt 0:09:09]} Re8 {[%emt 0:02:29]} 17. d5 {[%emt 0:04:28]} Nf4 {[%emt 0:04:38]} 18. g3 {[%emt 0:01:32]} Ng6 {[%emt 0:00:02]} 19. b3 {[%emt 0:11:21]} Ne7 {[%emt 0:00:34]} 20. Ne3 {[%emt 0:00:04]} h5 {[%emt 0:03:27]} 21. a4 {[%emt 0:13:01]} bxa4 {[%emt 0:01:59]} 22. Rxa4 {[%emt 0:00:17]} g6 {[%emt 0:03:27]} 23. Ra3 {[%emt 0:02:05]} Nb6 {[%emt 0:00:52]} 24. c4 {[%emt 0:47:26]} c5 {[%emt 0:01:28]} 25. dxc6 {[%emt 0:00:00]} Nxc6 {[%emt 0:00:20]} 26. Bb2 {[%emt 0:00:00]} Qc7 {[%emt 0:03:16]} 27. Bc3 {[%emt 0:00:00]} Qe7 {[%emt 0:02:38]} 28. Nd5 {[%emt 0:00:00]} Nxd5 {[%emt 0:00:27]} 29. cxd5 {[%emt 0:00:00]} Na7 {[%emt 0:01:08]} 30. Ra1 {[%emt 0:00:00]} Qd7 {[%emt 0:00:32]} 31. Bd3 {[%emt 0:00:00]} Nb5 {[%emt 0:00:10]} 32. Ba5 {[%emt 0:00:00]} Bd8 {[%emt 0:00:08]} 33. Qd2 {[%emt 0:00:00]} Rc8 {[%emt 0:04:21]} 34. Bc4 {[%emt 0:00:00]} Kg7 {[%emt 0:02:21]} 35. Qd3 {[%emt 0:00:00]} Rb8 {[%emt 0:05:56]} 36. Bxb5 {[%emt 0:00:00]} axb5 {[%emt 0:01:10]} 37. Bxd8 {[%emt 0:00:00]} Rexd8 {[%emt 0:00:30]} 38. Ra7 {[%emt 0:00:00]} Ra8 {[%emt 0:00:31]} 39. Rea1 {[%emt 0:00:00]} Rxa7 {[%emt 0:00:09]} 40. Rxa7 {[%emt 0:00:00]} Ra8 {[%emt 0:00:10]} 41. Qe3 {[%emt 0:00:00]} Qc7 {[%emt 0:00:33]} 42. Ng5 {[%emt 0:00:03]} Rxa7 {[%emt 0:04:26]} 43. Qxa7 {[%emt 0:00:06]} Qd7 {[%emt 0:00:08]} 44. Qb6 {[%emt 0:02:30]} Kf6 {[%emt 0:00:11]} 45. Kf1 {[%emt 0:00:36]} Ke7 {[%emt 0:00:23]} 46. Ke1 {[%emt 0:00:40]} Bc8 {[%emt 0:00:37]} 47. Kd2 {[%emt 0:06:06]} Qe8 {[%emt 0:00:52]} 48. Qa7+ {[%emt 0:00:00]} Bd7 {[%emt 0:00:00]} 49. f4 {[%emt 0:00:00]} exf4 {[%emt 0:00:00]} 50. gxf4 {[%emt 0:00:00]} Kf8 {[%emt 0:00:00]} 51. Qd4 {[%emt 0:00:00]} Kg8 {[%emt 0:50:29]} 52. Qf6 {[%emt 0:00:00]} Qf8 {[%emt 0:00:00]} 53. f5 {[%emt 0:00:00]} gxf5 {[%emt 0:00:00]} 54. exf5 {[%emt 0:00:00]} b4 {[%emt 0:00:00]} 55. Ne4 {[%emt 0:00:00]} Qa8 {[%emt 0:00:00]} 56. Qg5+ {[%emt 0:00:00]} Kf8 {[%emt 0:00:00]} 57. Qh6+ {[%emt 0:00:00]} Ke7 {[%emt 0:00:00]} 58. Qf6+ {[%emt 0:00:00]} 1-0

[Event "African Individual Chess-ch Open 2024"]
[Site "Accra"]
[Date "2024.03.18"]
[Round "7.6"]
[White "Wanyama, Harold"]
[Black "Kayonde, Andrew"]
[Result "0-1"]
[ECO "E00"]
[WhiteElo "2226"]
[BlackElo "2321"]
[Annotator "TA"]
[PlyCount "109"]
[EventDate "2024.03.13"]
[EventCountry "GHA"]
[SourceTitle "playchess.com"]
[Source "ChessBase"]
[SourceQuality "1"]
[TimeControl "5400+30"]

{[%evp 10,109,0,2,12,0,0,-87,0,-14,-29,-21,-21,-23,-16,-40,-31,-51,-9,-33,10,0,0,0,0,-29,-53,-30,12,-80,-89,-105,-114,-99,-62,-91,-59,-66,0,0,0,-46,-70,-47,-64,-74,-50,-55,-58,-71,0,0,0,0,0,-31,-31,-46,-27,-25,-26,-19,-19,-19,-20,-33,-4,-126,-126,-126,-85,-85,-85,-29955,-29956,-29961,-29962,-29962,-29955,-29963,-29964,-29965,-29965,-29966,-29967,-29966,-29967,-29967,-29968,-29969,-29970,-29969,-29969,-29971,-29971,-29971,-29972,-29973,-29974,-29979,-29980,-29979]} 1. d4 {[%emt 0:00:06]} Nf6 {[%emt 0:00:13]} 2. c4 {[%emt 0:00:08]} e6 {[%emt 0:00:13]} 3. g3 {[%emt 0:00:14]} Bb4+ {[%emt 0:00:30]} 4. Nd2 {[%emt 1:32:02]} c5 {[%emt 0:01:17]} 5. a3 {[%emt 0:00:00]} Bxd2+ {[%emt 0:00:13]} 6. Qxd2 {[%emt 0:00:00]} cxd4 {[%emt 0:00:07]} 7. Qxd4 {[%emt 0:00:00]} Nc6 {[%emt 0:00:30]} 8. Qh4 {[%emt 0:00:00]} (8. Qd3 $11) 8... Na5 {[%emt 0:03:32]} ({Black should play} 8... e5 $1 $17 {Hoping for ...Nd4.} 9. Bg2 Nd4) 9. b4 {[%emt 0:00:00]} Nb3 {[%emt 0:00:43]} 10. Rb1 {[%emt 0:00:00]} Nxc1 {[%emt 0:00:11]} 11. Rxc1 {[%emt 0:00:00]} a5 {[%emt 0:00:42]} 12. c5 {[%emt 0:00:00]} axb4 {[%emt 0:00:40]} 13. axb4 {[%emt 0:00:00]} d5 {[%emt 0:28:17]} 14. Bg2 {[%emt 0:00:00]} Qd7 {[%emt 0:05:42]} 15. Nf3 {[%emt 0:00:00]} Qb5 {[%emt 0:00:13]} 16. Ne5 {[%emt 0:00:00]} O-O {[%emt 0:01:02]} 17. Bf3 {[%emt 0:00:00] [#]} Ne4 $1 {[%emt 0:05:24]} 18. Nd3 {[%emt 0:00:00]} (18. O-O Qxb4) 18... f5 {[%emt 0:01:13]} 19. O-O {[%emt 0:00:00] [#]} (19. Qf4 $11) 19... Nd2 $1 $17 {[%emt 0:00:27] Black is more active.} 20. Bg2 {[%emt 0:00:00]} Nxf1 {[%emt 0:00:12]} 21. Bxf1 {[%emt 0:00:00]} Ra2 {[%emt 0:01:03]} 22. Qd4 {[%emt 0:00:00]} Qa4 {[%emt 0:00:20]} 23. h4 {[%emt 0:00:00]} Rc2 {[%emt 0:00:46]} ({Better is} 23... Re8 $15) 24. Ra1 $11 {[%emt 0:00:00]} Qb3 {[%emt 0:00:07]} 25. Ra7 {[%emt 0:00:00]} (25. Qf4 $11 Qc3 26. Ra8) 25... Ra2 $15 {[%emt 0:07:43]} 26. Rxa2 {[%emt 0:00:00]} Qxa2 {[%emt 0:00:21]} 27. Ne5 {[%emt 0:00:00]} Qb1 {[%emt 0:00:47]} 28. e3 {[%emt 0:00:00] [#]} b6 $1 {[%emt 0:01:49]} 29. b5 {[%emt 0:00:00] [#] Inhibits Ba6.} bxc5 {[%emt 0:02:37]} (29... Qe4 $1 $17 {...bxc5 is the strong threat.} 30. cxb6 Qxd4 31. exd4 Bb7) 30. Qxc5 $11 {[%emt 0:00:00]} d4 {[%emt 0:00:51]} 31. Qxd4 {[%emt 0:00:00]} Qe4 {[%emt 0:11:42]} 32. Qxe4 {[%emt 0:00:00]} fxe4 {[%emt 0:00:03][%mdl 4096] Endgame. KRB-KBN} 33. Bg2 {[%emt 0:00:00]} Rf5 {[%emt 0:05:23]} 34. Nc6 {[%emt 0:15:00]} Kf8 {[%emt 0:00:27] Inhibits Ne7.} (34... Rxb5 $2 {loses.} 35. Ne7+ (35. Bxe4 Bd7 $17) 35... Kf8 36. Nxc8 $18) 35. Bxe4 {[%emt 0:00:00]} Rxb5 {[%emt 0:00:22]} 36. Bxh7 {[%emt 0:00:00]} Bb7 {[%emt 0:08:24]} 37. Nd4 {[%emt 0:00:00]} Ra5 {[%emt 0:00:08][%mdl 1024] ( -> ...Ra1+). Black has compensation.} (37... Rb6 $5 38. f4 g6 $15) 38. e4 {[%emt 0:02:00]} (38. Nxe6+ $2 {perishes.} Ke7 39. Kh2 Kxe6 $19) (38. f4 $11 {keeps the balance.}) 38... Kf7 $17 {[%emt 0:00:56]} 39. Nf3 {[%emt 0:00:00]} g6 {[%emt 0:00:52]} 40. Ng5+ {[%emt 0:00:00]} Kg7 {[%emt 0:05:16][%cal Oa5g5]} 41. f3 $2 {[%emt 0:00:00][%mdl 8192] [#] This costs White the game.} (41. f4 $17) 41... Rxg5 $1 {[%emt 0:06:32][%mdl 512] Black mates.} 42. hxg5 {[%emt 0:00:00]} (42. Kg2 Rb5) 42... Kxh7 {[%emt 0:00:13] KB-KP} 43. Kf2 {[%emt 0:00:00]} Kg7 {[%emt 0:00:13]} 44. Ke3 {[%emt 0:00:00]} e5 {[%emt 0:00:34]} 45. f4 {[%emt 0:00:00]} Bc8 {[%emt 0:00:31]} 46. Kd3 {[%emt 0:00:00]} Kf7 {[%emt 0:00:14]} 47. Ke3 {[%emt 0:00:00]} Bg4 {[%emt 0:00:15]} 48. Kd3 {[%emt 0:00:00]} Ke6 {[%emt 0:00:08]} 49. Ke3 {[%emt 0:00:00]} Kd6 {[%emt 0:00:29]} 50. Kd3 {[%emt 0:00:00]} Be6 {[%emt 0:01:24]} 51. Ke3 {[%emt 0:00:00]} Kc5 {[%emt 0:00:08]} 52. Kd3 {[%emt 0:00:00]} Kb4 {[%emt 0:00:23]} 53. Ke3 {[%emt 0:00:00]} Kc4 {[%emt 0:00:20]} 54. f5 {[%emt 0:00:00]} Bf7 {[%emt 0:00:08]} 55. g4 {[%emt 0:08:30] Weighted Error Value: White=0.26 (precise) /Black=0.11 (very precise) .  Loses game:     	White=1     	---        Mistake:       	White=4     	Black=3      Inaccurate:     	White=3     	Black=6      OK:         	White=9     	Black=15     Best:        	White=4     	Black=3      Strong:       	---       	Black=1      Brilliant:      	---       	Black=2} 0-1

[Event "African Individual Chess-ch Open 2024"]
[Site "Accra"]
[Date "2024.03.18"]
[Round "7.7"]
[White "Agnelo, Amorim"]
[Black "Cogan, Nicolas"]
[Result "0-1"]
[ECO "B78"]
[WhiteElo "2219"]
[BlackElo "2070"]
[Annotator "RC"]
[PlyCount "82"]
[EventDate "2024.03.13"]
[EventCountry "GHA"]
[SourceTitle "playchess.com"]
[Source "ChessBase"]
[SourceQuality "1"]
[TimeControl "5400+30"]

1. e4 {[%emt 0:00:04]} c5 {[%emt 0:00:20]} 2. Nf3 {[%emt 0:00:11]} Nc6 {[%emt 0:00:05]} 3. d4 {[%emt 0:00:52]} cxd4 {[%emt 0:00:06]} 4. Nxd4 {[%emt 0:00:04]} g6 {[%emt 0:00:14]} 5. Nc3 {[%emt 0:04:04]} Bg7 {[%emt 0:00:17]} 6. Be3 {[%emt 0:00:09]} Nf6 {[%emt 0:00:17]} 7. Bc4 {[%emt 0:00:52]} O-O {[%emt 0:00:35]} 8. f3 {[%emt 0:01:09]} d6 {[%emt 0:00:27]} 9. Qd2 {[%emt 0:00:30]} Bd7 {[%emt 0:00:22]} 10. O-O-O {[%emt 0:02:44]} Rc8 {[%emt 0:00:10]} 11. Bb3 {[%emt 0:00:14]} Ne5 {[%emt 0:00:39]} 12. h4 {[%emt 0:02:16]} h5 {[%emt 0:00:27]} 13. Bg5 {[%emt 0:04:16]} Rc5 {[%emt 0:03:12]} 14. Kb1 {[%emt 0:01:17]} b5 {[%emt 0:01:45]} 15. a3 {[%emt 0:10:55]} Nc4 {[%emt 0:21:41]} 16. Bxc4 {[%emt 0:04:49]} Rxc4 {[%emt 0:01:55]} 17. Nde2 {[%emt 0:03:31]} b4 {[%emt 0:17:43]} 18. Qd3 {[%emt 0:09:46]} Qc8 {[%emt 0:27:53]} 19. Bxf6 {[%emt 0:15:34]} Bxf6 {[%emt 0:00:23]} 20. Nd5 {[%emt 0:00:08]} bxa3 {[%emt 0:00:42]} 21. Nxf6+ {[%emt 0:01:20]} exf6 {[%emt 0:00:06]} 22. Qxa3 {[%emt 0:00:37]} Rxc2 {[%emt 0:03:05]} 23. Rc1 {[%emt 0:00:49]} Rxc1+ {[%emt 0:00:15]} 24. Rxc1 {[%emt 0:00:02]} Qb7 {[%emt 0:00:25]} 25. Rd1 {[%emt 0:01:45]} Be6 {[%emt 0:03:45]} 26. Rxd6 {[%emt 0:01:45]} Qb5 {[%emt 0:01:27]} 27. Rd2 {[%emt 0:01:41]} Rc8 {[%emt 0:02:34]} 28. Qd3 {[%emt 0:13:05]} Bc4 {[%emt 0:05:04]} 29. Qe3 {[%emt 0:01:27]} Bb3 {[%emt 0:01:46]} 30. Qd4 {[%emt 0:05:26]} Rc6 {[%emt 0:04:29]} 31. Qd7 {[%emt 0:06:28]} Kg7 {[%emt 0:01:24]} 32. Nc3 {[%emt 0:01:20]} Qf1+ {[%emt 0:00:57]} 33. Nd1 {[%emt 0:00:05]} Qc4 {[%emt 0:01:12]} 34. Nc3 {[%emt 0:08:15]} Qf1+ {[%emt 0:00:29]} 35. Nd1 {[%emt 0:00:00]} Rb6 {[%emt 0:01:16]} 36. Qd4 {[%emt 0:00:00]} Qe1 {[%emt 0:00:30]} 37. Qf2 {[%emt 0:00:00]} Qh1 {[%emt 0:00:08]} 38. Qe2 {[%emt 0:00:00]} Qxh4 {[%emt 0:00:27]} 39. Qf1 {[%emt 0:00:01]} Qg5 {[%emt 0:00:44]} 40. Qe1 {[%emt 0:00:05]} Qa5 {[%emt 0:00:26]} 41. Nc3 {[%emt 0:00:00]} Ra6 {[%emt 0:00:00]} 0-1

[Event "African Individual Chess-ch Open 2024"]
[Site "Accra"]
[Date "2024.03.18"]
[Round "7.8"]
[White "De Gondo, Simplice Armel"]
[Black "Paiva, Donaldo"]
[Result "1/2-1/2"]
[ECO "E57"]
[WhiteElo "2024"]
[BlackElo "2172"]
[Annotator "RC"]
[PlyCount "165"]
[EventDate "2024.03.13"]
[EventCountry "GHA"]
[SourceTitle "playchess.com"]
[Source "ChessBase"]
[SourceQuality "1"]
[TimeControl "5400+30"]

1. e4 {[%emt 0:00:02]} c6 {[%emt 0:00:43]} 2. c4 {[%emt 0:00:03]} d5 {[%emt 0:00:07]} 3. exd5 {[%emt 0:00:02]} cxd5 {[%emt 0:00:08]} 4. d4 {[%emt 0:00:05]} Nf6 {[%emt 0:00:18]} 5. Nc3 {[%emt 0:00:13]} e6 {[%emt 0:01:44]} 6. Bg5 {[%emt 0:00:04]} Be7 {[%emt 0:00:08]} 7. Nf3 {[%emt 0:00:19]} O-O {[%emt 0:02:00]} 8. Bd3 {[%emt 0:00:01]} dxc4 {[%emt 0:00:20]} 9. Bxc4 {[%emt 0:00:01]} Nc6 {[%emt 0:04:43]} 10. O-O {[%emt 0:00:04]} b6 {[%emt 0:00:45]} 11. Re1 {[%emt 0:30:20]} Bb7 {[%emt 0:05:04]} 12. a3 {[%emt 0:00:25]} Rc8 {[%emt 0:01:47]} 13. Ba2 {[%emt 0:00:17]} Nd5 {[%emt 0:08:29]} 14. Bxe7 {[%emt 0:00:42]} Ncxe7 {[%emt 0:00:56]} 15. Ne4 {[%emt 0:10:08]} Nf5 {[%emt 0:11:06]} 16. Ng3 {[%emt 0:03:33]} Nde7 {[%emt 0:02:54]} 17. Nxf5 {[%emt 0:12:15]} Nxf5 {[%emt 0:00:26]} 18. d5 {[%emt 0:05:21]} exd5 {[%emt 0:03:57]} 19. Qd3 {[%emt 0:00:19]} g6 {[%emt 0:02:04]} 20. Rad1 {[%emt 0:00:49]} Qf6 {[%emt 0:00:45]} 21. Ne5 {[%emt 0:01:06]} Rfd8 {[%emt 0:52:36]} 22. b4 {[%emt 0:05:51]} Qd6 {[%emt 0:00:00]} 23. g3 {[%emt 0:04:14]} f6 {[%emt 0:00:00]} 24. Ng4 {[%emt 0:02:07]} Kg7 {[%emt 0:00:00]} 25. h4 {[%emt 0:00:23]} h5 {[%emt 0:00:00]} 26. Ne3 {[%emt 0:04:17]} Nxe3 {[%emt 0:00:00]} 27. Rxe3 {[%emt 0:00:02]} Rd7 {[%emt 0:00:00]} 28. Rde1 {[%emt 0:00:14]} Qf8 {[%emt 0:00:00]} 29. Bb1 {[%emt 0:01:40]} Qf7 {[%emt 0:00:00]} 30. Ba2 {[%emt 0:01:10]} Rcc7 {[%emt 0:00:00]} 31. Kh2 {[%emt 0:04:08]} f5 {[%emt 0:00:00]} 32. Re6 {[%emt 0:00:19]} d4 {[%emt 0:00:00]} 33. Re7 {[%emt 0:04:39]} Rxe7 {[%emt 0:00:00]} 34. Bxf7 {[%emt 0:00:04]} Rxe1 {[%emt 0:00:00]} 35. Bd5 {[%emt 0:00:52]} Bxd5 {[%emt 0:00:00]} 36. Qxd4+ {[%emt 0:00:03]} Kh7 {[%emt 0:00:00]} 37. Qxd5 {[%emt 0:00:04]} Rce7 {[%emt 0:00:00]} 38. Kg2 {[%emt 0:00:50]} R1e4 {[%emt 0:00:00]} 39. Qd6 {[%emt 0:00:20]} f4 {[%emt 0:00:00]} 40. gxf4 {[%emt 0:00:12]} Rf7 {[%emt 0:00:00]} 41. Kg3 {[%emt 0:00:09]} Rc4 {[%emt 0:00:00]} 42. f3 {[%emt 0:06:15]} Rc1 {[%emt 0:00:00]} 43. Qe6 {[%emt 0:04:58]} Rcc7 {[%emt 0:00:00]} 44. Qd6 {[%emt 0:00:11]} Rb7 {[%emt 0:00:00]} 45. Qc6 {[%emt 0:02:28]} Rbe7 {[%emt 0:00:00]} 46. Qc3 {[%emt 0:00:36]} Rf5 {[%emt 0:00:00]} 47. Qd4 {[%emt 0:00:21]} Ref7 {[%emt 0:00:00]} 48. Qd6 {[%emt 0:01:13]} R5f6 {[%emt 0:00:00]} 49. Qe5 {[%emt 0:00:07]} a5 {[%emt 0:00:00]} 50. bxa5 {[%emt 0:00:53]} Rf5 {[%emt 0:00:00]} 51. Qc3 {[%emt 0:00:00]} bxa5 {[%emt 0:00:00]} 52. Qd4 {[%emt 0:00:00]} R5f6 {[%emt 0:00:00]} 53. Qe5 {[%emt 0:00:00]} Rf5 {[%emt 0:00:00]} 54. Qd4 {[%emt 0:00:00]} Rb7 {[%emt 0:00:00]} 55. Qc4 {[%emt 0:00:00]} Rd7 {[%emt 0:00:00]} 56. Qc3 {[%emt 0:00:00]} Rfd5 {[%emt 0:00:00]} 57. Qf6 {[%emt 0:00:00]} R5d6 {[%emt 0:00:00]} 58. Qc3 {[%emt 0:00:00]} Rd5 {[%emt 0:00:00]} 59. Qe1 {[%emt 0:00:00]} Rc5 {[%emt 0:00:00]} 60. Qe3 {[%emt 0:00:00]} Rdc7 {[%emt 0:00:00]} 61. Qd4 {[%emt 0:00:00]} Rf5 {[%emt 0:00:00]} 62. Qd3 {[%emt 0:00:00]} Kg7 {[%emt 0:00:00]} 63. Qd4+ {[%emt 0:00:00]} Kf7 {[%emt 0:00:00]} 64. Qd3 {[%emt 0:00:00]} Re7 {[%emt 0:00:00]} 65. Qd2 {[%emt 0:00:00]} Re6 {[%emt 0:00:00]} 66. Qd7+ {[%emt 0:00:00]} Re7 {[%emt 0:00:00]} 67. Qd2 {[%emt 0:00:00]} Ke8 {[%emt 0:00:00]} 68. Qd6 {[%emt 0:00:00]} Kf7 {[%emt 0:00:00]} 69. Qd2 {[%emt 0:00:00]} Rb7 {[%emt 0:00:00]} 70. Qd3 {[%emt 0:00:00]} Rc7 {[%emt 0:00:00]} 71. Qd4 {[%emt 0:00:00]} Rfc5 {[%emt 0:00:00]} 72. Qd2 {[%emt 0:00:00]} Ke6 {[%emt 0:00:00]} 73. Qe3+ {[%emt 0:00:00]} Kf7 {[%emt 0:00:00]} 74. Qd2 {[%emt 0:00:00]} Re7 {[%emt 0:00:00]} 75. Qd3 {[%emt 0:00:00]} Rf5 {[%emt 0:00:00]} 76. Qc3 {[%emt 0:00:00]} Kg8 {[%emt 0:00:00]} 77. Qc6 {[%emt 0:00:00]} Kh7 {[%emt 0:00:00]} 78. Qc3 {[%emt 0:00:00]} Ref7 {[%emt 0:00:00]} 79. Qd4 {[%emt 0:00:00]} R7f6 {[%emt 0:00:01]} 80. Qd7+ {[%emt 0:00:00]} Kg8 {[%emt 0:00:07]} 81. Qc8+ {[%emt 0:00:00]} Rf8 {[%emt 0:00:21]} 82. Qe6+ {[%emt 0:00:00]} Kg7 {[%emt 0:00:06]} 83. Qd6 {[%emt 0:00:00]} 1/2-1/2

[Event "African Individual Chess-ch Open 2024"]
[Site "Accra"]
[Date "2024.03.18"]
[Round "7.9"]
[White "Amoako Philip Selikem Yao"]
[Black "Rongwane, Gomolemo"]
[Result "0-1"]
[ECO "C92"]
[WhiteElo "1848"]
[BlackElo "2021"]
[Annotator "NA RC"]
[PlyCount "76"]
[EventDate "2024.03.13"]
[EventCountry "GHA"]
[SourceTitle "playchess.com"]
[Source "ChessBase"]
[SourceQuality "1"]
[TimeControl "5400+30"]

1. e4 {[%emt 0:00:08]} e5 {[%emt 0:00:13]} 2. Nf3 {[%emt 0:00:13]} Nc6 {[%emt 1:31:17]} 3. Bb5 {[%emt 0:00:07]} a6 {[%emt 0:00:00]} 4. Ba4 {[%emt 0:00:12]} Nf6 {[%emt 0:00:00]} 5. O-O {[%emt 0:00:18]} Be7 {[%emt 0:00:00]} 6. Re1 {[%emt 0:00:59]} b5 {[%emt 0:00:00]} 7. Bb3 {[%emt 0:00:15]} d6 {[%emt 0:00:00]} 8. c3 {[%emt 0:01:14]} O-O {[%emt 0:00:00]} 9. h3 {[%emt 0:00:49]} Nb8 {[%emt 0:00:00]} 10. d4 {[%emt 0:01:05]} Nbd7 {[%emt 0:00:00]} 11. Nbd2 {[%emt 0:01:26]} Bb7 {[%emt 0:00:00]} 12. Bc2 {[%emt 0:01:58]} Re8 {[%emt 0:00:00]} 13. d5 {[%emt 0:01:56]} Bf8 {[%emt 0:00:00]} 14. Nf1 {[%emt 0:00:58]} c6 {[%emt 0:00:00]} 15. dxc6 {[%emt 0:09:20]} Bxc6 $11 {[%emt 0:00:00]} 16. Ng3 {[%emt 0:02:01]} g6 {[%emt 0:00:00]} 17. a4 {[%emt 0:06:36]} Nc5 {[%emt 0:00:00]} 18. axb5 {[%emt 0:00:54]} axb5 {[%emt 0:00:00]} 19. Bg5 {[%emt 0:03:19]} h6 {[%emt 0:00:00]} 20. Rxa8 {[%emt 0:02:47]} Bxa8 {[%emt 0:00:00]} 21. Bxf6 {[%emt 0:05:33]} Qxf6 {[%emt 0:00:00]} 22. Nf1 {[%emt 0:05:21]} Ne6 {[%emt 0:00:00]} 23. Ne3 {[%emt 0:04:24]} Nf4 {[%emt 0:00:00]} 24. Kh2 {[%emt 0:04:33]} Bc6 {[%emt 0:00:00]} 25. g3 {[%emt 0:02:42]} Ne6 {[%emt 0:00:00]} 26. Kg2 {[%emt 0:02:21]} Ra8 {[%emt 0:00:00]} 27. Nd5 {[%emt 0:01:25]} Qd8 {[%emt 0:00:00]} 28. Nb4 {[%emt 0:05:12]} Bb7 {[%emt 0:00:00]} 29. Qd3 {[%emt 0:06:26]} Ra5 {[%emt 0:00:00]} 30. Rd1 {[%emt 0:02:44]} Qa8 {[%emt 0:00:00]} 31. Nd5 {[%emt 0:02:47]} Bc6 {[%emt 0:00:00]} 32. Qe2 {[%emt 0:12:02]} Kg7 {[%emt 0:00:00]} 33. Nh4 {[%emt 0:01:55]} Ng5 {[%emt 0:00:00]} 34. f4 {[%emt 0:05:16]} exf4 {[%emt 0:00:00]} 35. gxf4 {[%emt 0:00:11]} Ne6 {[%emt 0:00:00]} 36. Qf2 {[%emt 0:02:29]} Qa7 {[%emt 0:00:00]} 37. Qg3 {[%emt 0:01:04]} Ra1 {[%emt 0:00:00]} 38. Rd2 {[%emt 0:03:36]} Rg1+ {[%emt 0:00:00]} 0-1

[Event "African Individual Chess-ch Open 2024"]
[Site "Accra"]
[Date "2024.03.18"]
[Round "7.10"]
[White "KIGIGHA, Bomo Lovet"]
[Black "Akpa Prince"]
[Result "1-0"]
[ECO "A16"]
[WhiteElo "2231"]
[BlackElo "1845"]
[Annotator "TA"]
[PlyCount "49"]
[EventDate "2024.03.13"]
[EventCountry "GHA"]
[SourceTitle "playchess.com"]
[Source "ChessBase"]
[SourceQuality "1"]
[TimeControl "5400+30"]

{[%evp 9,49,0,24,15,42,57,43,53,58,51,69,71,82,70,104,102,103,120,110,96,216,198,212,199,246,220,242,229,336,325,325,318,426,418,1833,1650,5765,5477,2736,2457,2047,1981]} 1. c4 {[%emt 0:00:23]} Nf6 {[%emt 0:00:14]} 2. Nc3 {[%emt 0:00:07]} g6 {[%emt 0:00:16]} 3. e4 {[%emt 0:00:09]} d6 {[%emt 0:00:29]} 4. g3 {[%emt 0:00:07]} Bg7 {[%emt 0:00:16]} 5. Bg2 {[%emt 0:00:06]} e5 {[%emt 0:00:52]} 6. Nge2 {[%emt 0:00:05]} Be6 {[%emt 0:03:12]} 7. d4 {[%emt 0:00:23]} O-O {[%emt 0:04:13]} 8. d5 {[%emt 0:00:20] White is slightly better.} Bc8 {[%emt 0:00:16]} 9. O-O {[%emt 0:00:23]} Ne8 {[%emt 0:05:02]} 10. Be3 {[%emt 0:01:05]} Na6 {[%emt 0:00:57]} 11. Qd2 {[%emt 0:03:43]} f5 {[%emt 0:03:24]} 12. f4 {[%emt 0:01:41] White is more active.} Nf6 {[%emt 0:05:44]} 13. fxe5 {[%emt 0:00:24]} dxe5 {[%emt 0:05:03]} 14. h3 {[%emt 0:04:47] Against Ng4} Nxe4 {[%emt 0:04:48]} (14... Qe7 $16) 15. Nxe4 $18 {[%emt 0:00:40]} (15. Bxe4 $6 fxe4 16. Kh2 (16. Nxe4 Bxh3 17. Rf2 b6 $11) 16... Qe7 17. Rxf8+ (17. Nxe4 Rxf1 18. Rxf1 Bf5 $18) 17... Qxf8 $16) 15... fxe4 {[%emt 0:00:05]} 16. Nc3 {[%emt 0:00:09][%cal Be2c3,Bc3e4,Be4g5,Bg5f7][%mdl 32]} Bd7 {[%emt 0:04:28]} (16... Qe7 {was worth a try.} 17. Rxf8+ (17. Bxe4 Bxh3 18. d6 cxd6 $11) (17. Nxe4 Bf5 $18) 17... Bxf8) 17. Nxe4 {[%emt 0:00:45] Hoping for Bg5.} (17. Bxe4 $6 Rxf1+ 18. Rxf1 Bxh3 $16) 17... Qe7 {[%emt 0:01:54]} 18. c5 {[%emt 0:10:24] [#] aiming for d6.} Rxf1+ {[%emt 0:01:47]} (18... Bf5 {keeps fighting.} 19. b4 Kh8) 19. Rxf1 {[%emt 0:00:16]} Rf8 {[%emt 0:01:37]} 20. d6 {[%emt 0:02:40][%cal Bd5d6,Bd6c7][%mdl 32]} Rxf1+ {[%emt 0:00:24]} 21. Bxf1 {[%emt 0:00:16]} Qf7 {[%emt 0:02:32]} (21... cxd6 $142 22. Bc4+ (22. Nxd6 Be6 $18) (22. cxd6 Qf7 $18) (22. Qxd6 Kf8 $18) 22... Kh8) 22. Ng5 {[%emt 0:00:50] White is clearly winning.} Qe8 {[%emt 0:05:18]} 23. Bc4+ {[%emt 0:03:13]} Kh8 {[%emt 0:00:14]} 24. Nf7+ {[%emt 0:00:21]} Kg8 {[%emt 0:00:32]} 25. dxc7 {[%emt 0:00:26] Black got outplayed after the opening.   Weighted Error Value: White=0.05 (flawless) /Black=0.44.  Mistake:       	---       	Black=4      Inaccurate:     	---       	Black=4      OK:         	White=7     	Black=2      Best:        	White=1     	Black=1} 1-0